Cogmind - Beta 17 @@@ ROGUE MODE // 2026.06.27 @ 13:50:43 Player: Petvaria Result: Destroyed by G-47 Trooper with Particle Gun Performance ------------- Evolutions (2) 1000 Regions Visited (5) 1000 Robots Destroyed (119) 595 Value Destroyed (3403) 3403 Prototype IDs (6) 120 Alien Tech Used (0) 0 Bonus (7820) 7820 TOTAL SCORE: 13938 Bonus ------- High Alert Combat Kills 24 Follower Combat Kills 312 Prayed to X0-1V1 5000 Major X0-1V1 Interference 2300 Entered Garrisons 200 Friendly Fire -16 Cogmind --------- Core Integrity 0/625 Matter 672/700 Energy 1445/1465 System Corruption 0% Temperature Cool (30) Movement Treading (200) Ox1 Location -8/Garrison Parts ------- > --- POWER (1) -------- Reinforced Ion Engine > --- PROPULSION (4) --- Light Treads Light Treads Light Treads > --- UTILITY (4) ------ High-capacity Storage Unit Core Shielding Hardened Medium Armor Plating X0-1V1's Piety Tracker > --- WEAPON (2) ------- Ion Cannon Gauss Rifle > --- INVENTORY (20) --- Backup Power I Aluminum Leg Aluminum Leg Improved Heat Sink Huge Storage Unit Advanced Targeting Computer Advanced Targeting Computer Reaction Control System Improved Light Armor Plating Tractor Beam Heavy Assault Rifle Assault Cannon Assault Cannon Assault Cannon Assault Cannon Concussive RPG (1) Heavy Hammer Peak State ------------ > --- POWER ------------ Light Nuclear Core > --- PROPULSION ------- Light Treads Aluminum Leg Flexi-carbon Leg Flexi-carbon Leg > --- UTILITY ---------- Huge Storage Unit Phase Shifter Hardened Medium Armor Plating X0-1V1's Piety Tracker > --- WEAPON ----------- Heavy Assault Rifle Gauss Rifle > --- INVENTORY -------- Backup Power I Reaction Control System Improved Light Armor Plating Tractor Beam Backup Laser I Backup Laser I Field Laser Field Laser Concussive RPG Heavy Hammer [Rating: 45] Favorites ----------- Power Improved Ion Engine Engine Improved Ion Engine Power Core Light Nuclear Core Propulsion Light Treads Treads Light Treads Leg Flexi-carbon Leg Wheel Wheel Utility X0-1V1's Piety Tracker Device X0-1V1's Piety Tracker Storage Large Storage Unit Protection Improved Light Armor Plating Weapon Minigun Energy Gun Field Laser Energy Cannon Advanced Beam Cannon Ballistic Gun Minigun Ballistic Cannon Light Cannon Impact Weapon Heavy Hammer Build | -11 -10 -9 -9 -8 -8 ------- Run | Yrd Mat Mat Sto Mat Gar Slots Evolved 4 | . . 2 . 2 . Power . | . . . . . . Propulsion 2 | . . 1 . 1 . Utility 2 | . . 1 . 1 . Weapon . | . . . . . . Parts Attached 105 | 7 15 21 22 33 7 Power 13 | 1 1 4 2 4 1 Engine 10 | 1 1 4 2 1 1 Core 3 | . . . . 3 . Reactor . | . . . . . . Propulsion 34 | 2 1 6 11 10 4 Treads 27 | 2 1 6 11 4 3 Leg 6 | . . . . 5 1 Wheel 1 | . . . . 1 . Hover . | . . . . . . Flight . | . . . . . . Utility 32 | 2 8 7 3 11 1 Device 13 | 1 4 2 1 5 . Storage 4 | 1 1 . . 2 . Processor . | . . . . . . Hackware . | . . . . . . Protection 15 | . 3 5 2 4 1 Artifact . | . . . . . . Weapon 26 | 2 5 4 6 8 1 Energy Gun 9 | . 2 3 1 3 . Energy Cannon 4 | . . . 2 1 1 Ballistic Gun 11 | 2 2 1 2 4 . Ballistic Cannon 1 | . 1 . . . . Launcher . | . . . . . . Special Weapon . | . . . . . . Impact Weapon 1 | . . . 1 . . Slashing Weapon . | . . . . . . Piercing Weapon . | . . . . . . Special Melee Weapon . | . . . . . . Unidentified Prototypes 6 | . 1 1 4 . . Corrupted Parts 2 | . . . . 2 . System Corruption 16 | . . . . 16 . Parts Lost 34 | . . 2 2 25 5 Power 7 | . . 1 1 4 1 Propulsion 11 | . . . . 8 3 Utility 10 | . . 1 . 8 1 Weapon 6 | . . . 1 5 . Highest Loss Streak 16 | . . 1 1 16 2 To Critical Strikes . | . . . . . . Average Backups 13 | 3 11 14 14 9 15 Power 1 | . 1 . . . 1 Propulsion 2 | 2 4 2 2 . 1 Utility 4 | . 3 6 5 3 5 Weapon 4 | . 2 5 5 4 6 Tool/Special . | . . . . . . Unused Backups 31 | . 3 11 2 3 12 Power . | . . . . . . Propulsion 5 | . 3 1 . . 1 Utility 13 | . . 6 . 2 5 Weapon 12 | . . 4 2 1 5 Tool/Special 1 | . . . . . 1 Average Slot Usage (%) 95 | . 99 99 99 67 98 Engine 9 | . 14 10 10 2 5 Treads 27 | . 27 32 32 9 21 Leg 3 | . . . . 13 12 Device 9 | . 10 10 10 8 9 Storage 10 | . 14 11 11 6 9 Protection 9 | . 3 11 11 6 17 Energy Gun 4 | . 2 10 . 3 . Energy Cannon 3 | . . . 10 1 6 Ballistic Gun 13 | . 23 10 10 7 10 Peak Build Rating 45 | 7 20 31 32 45 45 Average Rating 25 | 5 13 27 31 26 39 On Entrance 22 | . 7 20 31 31 45 Avg Prop Armor Cover (%) 10 | . . . . 10 10 Naked Turns 6 | . . . . 6 . Heaviest Build 102 | 14 33 43 41 102 70 Greatest Support 80 | 40 40 60 60 80 80 Greatest Overweight (x) 9 | . 1 . . 9 2 Average Overweight (x) . | . . . . 1 . Largest Inventory Capacity 25 | 8 15 15 15 25 20 Average Capacity 15 | 7 14 15 15 18 20 Most Carried 20 | 7 15 15 15 18 20 Average Carried 13 | 3 11 14 14 9 16 Final Capacity 20 | 8 15 15 15 20 20 Final Carried 17 | 6 15 15 15 12 17 Class Distribution -------------------- 79% | Mutant 20% | Scavenger-Mutant Dominant Class ---------------- Mutant | -10/Materials Mutant | -9/Materials Mutant | -9/Storage Scavenger-Mutant | -8/Materials Scavenger-Mutant | -8/Garrison Resources | -11 -10 -9 -9 -8 -8 ----------- Run | Yrd Mat Mat Sto Mat Gar Matter Collected 3760 | 259 758 1065 535 934 209 Remotely . | . . . . . . Salvage Created 4886 | 94 1038 1093 1443 617 601 Parts 234 | 5 60 42 71 24 32 Haulers Intercepted 8 | . 2 . 6 . . Recyclers Shooed 6 | 1 3 1 1 . . Parts Field Recycled . | . . . . . . Retrieved Matter . | . . . . . . Parts Self-Destructed . | . . . . . . Prevented . | . . . . . . Parts Restored . | . . . . . . Kills | -11 -10 -9 -9 -8 -8 ------- Run | Yrd Mat Mat Sto Mat Gar Combat Hostiles Destroyed 94 | . 22 22 20 14 16 Guns 59 | . 16 21 3 10 9 Cannons 32 | . 5 . 17 3 7 Classes Destroyed 13 | 2 6 2 . 3 . Worker 2 | . 1 . . 1 . Tunneler 1 | 1 . . . . . Hauler 8 | . 2 . 6 . . Recycler 10 | 1 3 2 3 1 . Operator 3 | . 3 . . . . Watcher 1 | . 1 . . . . Swarmer 20 | . 9 3 . 2 6 Cutter 3 | . . . . 3 . Grunt 39 | . 13 8 10 4 4 Brawler 2 | . . . . 1 1 Duelist 4 | . . 2 1 . 1 Sentry 23 | . . 9 9 1 4 Hunter 3 | . . . . 3 . Best Kill Streak 7 | 2 3 3 6 4 7 Combat Bots Only 7 | . 3 3 6 4 7 Max Kills in Single Turn 2 | 1 1 1 2 1 2 Gunslinging 1 | . . . . . 1 Exploded . | . . . . . . Melee . | . . . . . . Uniques/NPCs Destroyed . | . . . . . . Combat | -11 -10 -9 -9 -8 -8 -------- Run | Yrd Mat Mat Sto Mat Gar Hostile Shots Fired 756 | . 107 127 95 325 102 Missed 183 | . 23 38 20 74 28 Hits 573 | . 84 89 75 251 74 Melee 22 | . . 7 6 9 . Projectile 551 | . 84 82 69 242 74 AOE 4 | . . . . 4 . Critical Strikes 20 | . . 4 . 12 4 Damage Taken 8435 | . 852 1253 1134 4269 927 Core 1658 | . 145 216 193 960 144 Absorbed by Shields . | . . . . . . Redirected to Shielding 13 | . . . . . 13 Regen/Repaired (Parts) 295 | . 234 61 . . . Core Remaining (%) 62 | 100 33 . 54 . . Volleys Fired 352 | 8 105 75 75 52 37 Largest 2 | 2 2 2 2 2 2 Hottest 136 | 40 70 88 93 136 88 Shots Fired 689 | 16 209 146 149 101 68 Gun 544 | 16 188 146 74 74 46 Cannon 145 | . 21 . 75 27 22 Launcher . | . . . . . . Special . | . . . . . . Kinetic 452 | 16 195 75 74 46 46 Thermal 237 | . 14 71 75 55 22 Explosive . | . . . . . . Electromagnetic . | . . . . . . Robot Hit Streak 26 | 5 26 25 14 16 15 Robot Miss Streak 4 | 1 2 3 4 4 2 Penetration Max 1 | . . . . . 1 Secondary Targets 7 | . 3 2 . . 2 Max Gunslinging Chain 1 | . 1 1 . . 1 Shots Hit Robots 493 | 11 152 118 94 74 44 Core Hits 178 | 3 53 39 34 26 23 Critical Kills 3 | . . . 2 . 1 Critical Parts Destroyed 2 | . . . . 2 . Critical Strikes 17 | . 3 5 2 6 1 Burn 11 | . 2 5 . 4 . Meltdown 1 | . . . 1 . . Destroy 2 | . . . 1 . 1 Blast 1 | . 1 . . . . Smash 2 | . . . . 2 . Melee Attacks 34 | . . . 2 31 1 Impact 34 | . . . 2 31 1 Slashing . | . . . . . . Piercing . | . . . . . . Sneak Attacks 2 | . . . 1 1 . Combat Hostiles . | . . . . . . Follow-up Attacks . | . . . . . . Damage Inflicted 8117 | 113 1741 1807 1887 1609 960 Guns 5527 | 113 1473 1790 703 815 633 Cannons 2000 | . 253 . 1113 307 327 Explosions . | . . . . . . Melee 546 | . . . 65 481 . Ramming 44 | . 15 17 6 6 . Kinetic 4337 | 113 1593 842 703 453 633 Thermal 3190 | . 133 948 1113 669 327 Explosive . | . . . . . . Electromagnetic . | . . . . . . Impact 546 | . . . 65 481 . Slashing . | . . . . . . Piercing . | . . . . . . Highest Corruption 19 | . . 3 3 19 . Average Corruption 5 | . . 2 3 13 . Corruption Purged . | . . . . . . Corruption Blocked . | . . . . . . Effects 31 | . . 18 2 11 . Message Errors 8 | . . 5 1 2 . Matter Fused 8 | . . 5 1 2 . Heat Flow Errors 3 | . . 2 . 1 . Energy Discharges 3 | . . 1 . 2 . Parts Rejected 1 | . . . . 1 . Parts Fused 1 | . . . . 1 . Data Loss (minor) 2 | . . 1 . 1 . Data Loss (major) 1 | . . . . 1 . Misfires 2 | . . 2 . . . Weapon Failures 2 | . . 2 . . . Overload Shots . | . . . . . . Overflow Damage 207 | . 3 . 40 163 1 Projectiles 4 | . 3 . . . 1 Explosions . | . . . . . . Melee 203 | . . . 40 163 . Knockbacks 7 | . 3 . 1 3 . Impact 3 | . . . 1 2 . Kinetic 3 | . 3 . . . . Secondary 1 | . . . . 1 . Self-Inflicted Damage . | . . . . . . Shots . | . . . . . . Rammed 10 | . 7 3 . . . Targets Rammed 12 | . 7 3 1 1 . Kicked . | . . . . . . Crushed 2 | . . . 1 1 . Highest Temperature 333 | . 75 254 81 333 21 Average Temperature 40 | . 18 51 25 80 7 Received Heat Transfer 1953 | . 336 342 336 588 351 Siege Activations . | . . . . . . Martial Activations . | . . . . . . Shielding Activations . | . . . . . . Robots Disrupted . | . . . . . . Combat Hostiles . | . . . . . . Robots Corrupted 2 | . . . 1 1 . Combat Hostiles 1 | . . . . 1 . Parts Fried 1 | . . . . 1 . Impact Corruptions 5 | . . . 2 3 . Robots Melted 3 | . 1 1 1 . . Combat Hostiles 2 | . 1 1 . . . Parts Melted 22 | . 1 11 5 5 . Heat Transferred 7339 | . 531 2627 1998 1665 518 Parts Sabotaged . | . . . . . . Parts Stolen . | . . . . . . Parts Stripped . | . . . . . . Power Chain Reactions . | . . . . . . Alert | -11 -10 -9 -9 -8 -8 ------- Run | Yrd Mat Mat Sto Mat Gar Maximum Alert Level 2 | . . . 1 1 2 Low Security (%) 72 | 100 100 100 53 29 6 Level 1 23 | . . . 46 70 56 Level 2 3 | . . . . . 37 Level 3 . | . . . . . . Level 4 . | . . . . . . Level 5 . | . . . . . . High Security . | . . . . . . Max Security . | . . . . . . Peak Influence 467 | 5 144 124 340 293 467 Initial 133 | . . 48 14 89 133 Average 128 | . 59 60 178 206 333 Influence Increases 3341 | 10 614 615 904 794 404 Destroy 0b10 Robot/C 2060 | . 440 440 460 400 320 Destroy 0b10 Robot/NC 130 | 10 50 10 50 10 . Destroy Leader 470 | . 96 120 174 70 10 Allied During Kill 36 | . . 7 10 19 . Trap Triggered on 0b10 20 | . . . . . 20 Successful Hack 70 | . 11 22 . 9 28 Disable Machine 75 | . . . 45 30 . Destroy Structure 72 | . 2 1 6 37 26 Lose Combat Pursuer 180 | . 15 15 45 105 . Miscellaneous 228 | . . . 114 114 . Influence Decreases 2854 | 10 499 695 726 802 122 Entered New Map 284 | . . 67 21 124 72 Time Decay 1884 | 10 499 524 483 368 . Lost Part 340 | . . 20 20 250 50 Lost Ally 112 | . . . 52 60 . Purge Threat 234 | . . 84 150 . . Squads Dispatched 13 | . 5 . 2 6 . Investigation 2 | . 2 . . . . Extermination . | . . . . . . Reinforcement 8 | . 3 . 2 3 . Assault . | . . . . . . Garrison 3 | . . . . 3 . Intercept . | . . . . . . Searches Triggered . | . . . . . . Construction Impeded 1 | . . . . 1 . Haulers Reinforced . | . . . . . . Active Scanning Responses . | . . . . . . Cargo Convoy Interrupts . | . . . . . . Stealth | -11 -10 -9 -9 -8 -8 --------- Run | Yrd Mat Mat Sto Mat Gar Distress Signals 7 | . 5 . 2 . . Communications Jammed . | . . . . . . Distress Signals . | . . . . . . Times Spotted 145 | . 41 23 29 32 20 Peak Tracking Total 7 | . 5 3 7 7 7 Tactical Retreats 7 | . 1 1 2 3 . Traps | -11 -10 -9 -9 -8 -8 ------- Run | Yrd Mat Mat Sto Mat Gar Traps Triggered 7 | . 2 3 2 . . Indirectly . | . . . . . . Trap Hack Attempts . | . . . . . . Triggered . | . . . . . . Disarmed . | . . . . . . Reprogrammed . | . . . . . . Reused 2 | . . . . . 2 Traps Extracted . | . . . . . . Installed 3 | . . . . . 3 Triggered 2 | . . . . . 2 Most Traps Carried 3 | . . . . . 3 Machines | -11 -10 -9 -9 -8 -8 ---------- Run | Yrd Mat Mat Sto Mat Gar Machines Disabled 5 | . . . 3 2 . Max in Single Turn 1 | . . . 1 1 . Garrison Access 1 | . . . 1 . . Phase Generator 1 | . . . . . 1 Machines Repaired . | . . . . . . Machines Dismantled . | . . . . . . Machines Sabotaged . | . . . . . . Overloaded Fab Kills . | . . . . . . Hacking | -11 -10 -9 -9 -8 -8 --------- Run | Yrd Mat Mat Sto Mat Gar Machines Accessed 26 | . 7 12 3 3 1 Terminals 19 | . 6 9 2 1 1 Fabricators . | . . . . . . Repair Stations 3 | . 1 1 . 1 . Recycling Units . | . . . . . . Scanalyzers 2 | . . 2 . . . Garrison Access 2 | . . . 1 1 . Total Hacks 52 | . 16 23 5 6 2 Successful 32 | . 8 15 2 5 2 Failed 20 | . 8 8 3 1 . Catastrophic 3 | . 1 2 . . . Database Lockouts . | . . . . . . Manual 35 | . 13 18 3 . 1 Terminals 37 | . 12 18 3 2 2 Fabricators . | . . . . . . Repair Stations 9 | . 4 2 . 3 . Recycling Units . | . . . . . . Scanalyzers 3 | . . 3 . . . Garrison Access 3 | . . . 2 1 . Terminal Hacks 5 | . . 2 1 1 1 Part Schematic 1 | . . 1 . . . Emergency Access Points 1 | . . . . . 1 Unreport Threat 2 | . . 1 1 . . Hauler Manifests 1 | . . . . 1 . Fabricator Hacks . | . . . . . . Repair Station Hacks 9 | . 4 2 . 3 . Scan Component 4 | . 2 1 . 1 . Repair 4 | . 2 1 . 1 . Refit 1 | . . . . 1 . Recycling Unit Hacks . | . . . . . . Scanalyzer 1 | . . 1 . . . Retrieve Study 1 | . . 1 . . . Garrison Access Hacks 2 | . . . 1 1 . Unlock Access 1 | . . . . 1 . Seal Access 1 | . . . 1 . . Unauthorized Hacks 15 | . 4 10 . . 1 Terminals 15 | . 4 10 . . 1 Botnet 9 | . 3 5 . . 1 Skim 6 | . 1 5 . . . Fabricators . | . . . . . . Repair Stations . | . . . . . . Recycling Units . | . . . . . . Scanalyzers . | . . . . . . Garrison Access . | . . . . . . Data Cores Recovered . | . . . . . . Used . | . . . . . . Hacking Detections 19 | . 6 10 2 . 1 Full Trace Events 1 | . 1 . . . . Feedback Events . | . . . . . . Feedback Blocked . | . . . . . . Robot Schematics Acquired . | . . . . . . Robots Built . | . . . . . . Authchips . | . . . . . . Time . | . . . . . . Total Robot Build Rating . | . . . . . . Part Schematics Acquired 1 | . . 1 . . . Parts Built . | . . . . . . Authchips . | . . . . . . Time . | . . . . . . Total Part Build Rating . | . . . . . . Part Studies Acquired 1 | . . 1 . . . Parts Repaired 3 | . 2 1 . . . Time 104 | . 52 26 . 26 . Parts Recycled . | . . . . . . Recycled Matter . | . . . . . . Retrieved Matter . | . . . . . . Retrieved Components . | . . . . . . Parts Scanalyzed . | . . . . . . Part Schematics Acquired . | . . . . . . Parts Damaged . | . . . . . . Bothacking | -11 -10 -9 -9 -8 -8 ------------ Run | Yrd Mat Mat Sto Mat Gar Used RIF Installer . | . . . . . . Robots Hacked . | . . . . . . Non-combat . | . . . . . . Combat . | . . . . . . Robot Hacks Applied . | . . . . . . Relay Couplers Released . | . . . . . . Fabnet Peak Effective % . | . . . . . . Robots Rewired . | . . . . . . Allies Hacked . | . . . . . . Hacks Repelled . | . . . . . . Allies | -11 -10 -9 -9 -8 -8 -------- Run | Yrd Mat Mat Sto Mat Gar Total Allies 8 | . . 4 . 4 . Largest Group 4 | . . 4 4 3 . Highest-Rated Group 142 | . . 72 72 142 . Highest-Rated Ally 142 | . . 18 18 142 . Total Orders . | . . . . . . Ally Attacks 30 | . . 1 5 24 . Total Damage 922 | . . 58 162 702 . Kills 10 | . . . 4 6 . Allies Corrupted 1 | . . . . 1 . Allies Melted . | . . . . . . X0-1V1 Amusement Gains 89 | . 19 10 . 60 . Good Acts 38 | . 3 8 8 14 5 Bad Acts 18 | . . 4 3 10 1 Intel | -11 -10 -9 -9 -8 -8 ------- Run | Yrd Mat Mat Sto Mat Gar Active Infowar (turns) 386 | 28 358 . . . . Seismic 386 | 28 358 . . . . Robot Analysis Total . | . . . . . . Derelict Logs Recovered . | . . . . . . Drone Launches . | . . . . . . Drone Recoveries . | . . . . . . Exploration | -11 -10 -9 -9 -8 -8 ------------- Run | Yrd Mat Mat Sto Mat Gar Turns Passed 6636 | 142 1596 2068 1326 856 648 Spaces Moved 3159 | 72 724 1059 605 438 261 Core 220 | 13 . . . 207 . Treads 2591 | 59 724 1059 605 30 114 Legs 257 | . . . . 110 147 Wheels 91 | . . . . 91 . Hover . | . . . . . . Flight . | . . . . . . Fastest Speed 50 | 50 160 160 160 50 160 Average Speed 155 | 140 161 160 160 119 178 Slowest Speed 260 | 160 240 160 160 260 260 Overloaded Moves . | . . . . . . Propulsion Burnouts . | . . . . . . Robots Hopped . | . . . . . . Potential Cave-ins 3 | . . . . 3 . Cave-ins Triggered 2 | . . . . 2 . Exploration Rate (%) 56 | 5 97 96 78 31 34 Regions Visited 5 Branch Regions 1 Pre-discovered Areas . | . . . . . . Known Exits Taken 3 | . . 1 1 1 . Unknown Exits Taken 2 | 1 1 . . . . Scrap Searched . | . . . . . . Spaces Dug 18 | . . . . 17 1 Terrain Destroyed 22 | . . . . 19 3 Melee 18 | . . . . 17 1 Projectile 4 | . . . . 2 2 AOE . | . . . . . . Terrain Rammed . | . . . . . . Walls Destroyed . | . . . . . . Machines Disabled . | . . . . . . Actions | -11 -10 -9 -9 -8 -8 --------- Run | Yrd Mat Mat Sto Mat Gar Total 4186 | 99 949 1310 831 620 377 Wait 300 | . 67 80 90 19 44 Move 3154 | 71 723 1058 604 437 261 Hop . | . . . . . . Pick Up 111 | 13 18 29 9 27 15 Fast Attach 25 | . 4 6 10 5 . Attach 50 | 7 . 9 2 28 4 Detach 7 | . 3 1 . 3 . Swap 60 | . 14 16 15 10 5 Drop 77 | . 8 33 23 6 7 Fire 352 | 8 105 75 75 52 37 Melee 34 | . . . 2 31 1 Ram . | . . . . . . Kick . | . . . . . . Crush 12 | . 7 3 1 1 . Escape Stasis 1 | . . . . 1 . Rewire . | . . . . . . Trap 3 | . . . . . 3 Miscellaneous . | . . . . . . Route ------- -11/Scrapyard -10/Materials (discovered 6 exits: *Mat x3 / [*Min x2] / [*Sub]) -9/Materials (discovered 7 exits: *Mat x3 / *Min x2 / *Sto x2) -9/Storage (discovered 2 exits: *Mat / Rec) -8/Materials (discovered 2 exits: Fac / Gar) -8/Garrison (discovered 2 exits: *Fac x2) History --------- Turn | Location | Event 14 | -11/Scrapyard | Discovered new exit (range 16) 143 | -11/Scrapyard | Entered Materials 307 | -10/Materials | Build established: Mutant 383 | -10/Materials | Discovered new exit (range 9) 706 | -10/Materials | Discovered new exit (range 9) 731 | -10/Materials | Made a sacrifice at D.C.S.S. Altar Unit 732 | -10/Materials | Core integrity fell below 50% 801 | -10/Materials | Discovered new exit (range 16) 974 | -10/Materials | Discovered new exit (range 14) 1229 | -10/Materials | Ranged accuracy permanently improved by X0-1V1 (+5%; -50 max core) 1261 | -10/Materials | Repaired Lgt. Treads 1290 | -10/Materials | Repaired Lgt. Treads 1469 | -10/Materials | Discovered new exit (range 7) 1567 | -10/Materials | Heat dissipation permanently improved by X0-1V1 (+15; -75 max core) 1678 | -10/Materials | Discovered new exit (range 10) 1739 | -10/Materials | Entered another Materials area 1739 | -9/Materials | Evolved 2 slots: Propulsion x1, Utility x1 1775 | -9/Materials | X0-1V1 foreshadows a heat wave 1777 | -9/Materials | Repaired Lgt. Treads 1928 | -9/Materials | Ambient heat levels rising (+10) 2112 | -9/Materials | Ambient heat levels rising (+10) 2268 | -9/Materials | Ambient heat levels falling (-10) 2367 | -9/Materials | Discovered new exit (range 3) 2432 | -9/Materials | Ambient heat levels falling (-10) 2553 | -9/Materials | Discovered new exit (range 8) 2561 | -9/Materials | Core integrity fell below 50% 2589 | -9/Materials | Identified exit to Materials 2629 | -9/Materials | Loaded intel: 2 recycling unit locations 2658 | -9/Materials | Loaded intel: 2 repair station locations 2678 | -9/Materials | Identified exit to Storage 2678 | -9/Materials | Identified exit to Mines 2712 | -9/Materials | Learned location of 1 exit from Storage 2734 | -9/Materials | Core integrity restored by X0-1V1 (+49) 2744 | -9/Materials | Learned Materials stockpile data 3080 | -9/Materials | X0-1V1 sent hostile S-10 Pest (x3) 3181 | -9/Materials | Discovered exit to Storage (range 6) 3476 | -9/Materials | X0-1V1 vaporized surrounding terrain (radius 22) 3785 | -9/Materials | X0-1V1 sent allied L-31 Rogue (x4) 3807 | -9/Materials | Entered Storage 3807 | -9/Storage | Accompanied by 4 allies 3809 | -9/Storage | Identified exit to Recycling 3861 | -9/Storage | X0-1V1 activates XOMVISION 4048 | -9/Storage | X0-1V1 sent you into danger 4154 | -9/Storage | Core integrity restored by X0-1V1 (+71) 4437 | -9/Storage | Core integrity restored by X0-1V1 (+71) 4755 | -9/Storage | Core integrity permanently improved by X0-1V1 (+200) 4817 | -9/Storage | X0-1V1 added 0b10 threat records associated with you (minor) 5133 | -9/Storage | Entered Materials 5133 | -8/Materials | Evolved 2 slots: Propulsion x1, Utility x1 5148 | -8/Materials | X0-1V1 added 0b10 threat records associated with you (minor) 5162 | -8/Materials | X0-1V1 enhanced Transport squad support 5165 | -8/Materials | X0-1V1 sent you to a vault 5171 | -8/Materials | X0-1V1 rewrote Slicer 3b IFF filter 5174 | -8/Materials | Identified exit to Factory 5174 | -8/Materials | X0-1V1 revealed exit location to -7/Factory 5239 | -8/Materials | X0-1V1 activates XOMVISION 5261 | -8/Materials | X0-1V1 upgraded hostiles (x3) 5290 | -8/Materials | Core integrity fell below 50% 5294 | -8/Materials | Core integrity fell below 20% 5324 | -8/Materials | Lost 16 parts (2p6n4u4w) 5408 | -8/Materials | Crushed by falling debris 5408 | -8/Materials | X0-1V1 rescued you from certain death 5485 | -8/Materials | X0-1V1 sent allied H-71 Marshal (x1) 5527 | -8/Materials | System corruption reached 10% 5545 | -8/Materials | Garrison activated, responded to threat 5639 | -8/Materials | Lost 3 parts (1p1n1u) 5710 | -8/Materials | Crushed by falling debris 5741 | -8/Materials | Lost 3 parts (2u1w) 5891 | -8/Materials | Core integrity restored by X0-1V1 (+131) 5989 | -8/Materials | Identified exit to Garrison 5989 | -8/Materials | Entered Garrison 6028 | -8/Garrison | Build established: Scavenger-Mutant 6043 | -8/Garrison | X0-1V1 activates XOMVISION 6046 | -8/Garrison | X0-1V1 revealed exit location to -7/Factory 6053 | -8/Garrison | Destroyed 7 combat bots 6251 | -8/Garrison | Triggered checkpoint 6263 | -8/Garrison | Triggered checkpoint 6507 | -8/Garrison | Discovered exit to Factory (range 10) 6611 | -8/Garrison | Triggered checkpoint 6628 | -8/Garrison | X0-1V1 destroyed Phase Generator 6628 | -8/Garrison | Phase Generator disabled 6637 | -8/Garrison | Destroyed by G-47 Trooper with Particle Gun Last Messages --------------- Acquired Assault Cannon. Dropped Heavy Explosive Trap. Installed Heavy Explosive Trap. Beams of light sweep through the air. An alarm sounds. Dropped Heavy Explosive Trap. Installed Heavy Explosive Trap. G-47 Trooper triggered Heavy Explosive Trap. An explosion rips through the floor. Dropped Heavy Explosive Trap. Installed Heavy Explosive Trap. X0-1V1: "Oops." G-47 Trooper triggered Heavy Explosive Trap. An explosion rips through the floor. Lgt. Treads+ destroyed. Slug penetrates G-47 Trooper. Destroyed Aluminum Leg. Slug penetrates G-47 Trooper. G-47 Trooper destroyed. X0-1V1 guffaws! Map ----- +----------------------------------------------------+ | #????????????????????????????????????????????????? | | ????????? ????????#?????#???????????????#???#????? | | ????????? ????????? ????????????????????????????? | | ????????? ????????# ????????????????????????????? | | ????????? ????????# ????????????????????????????? | | ????????# ?????#??# ????????????????????????????? | | ????????# ????????# ????????????????????????????? | | ????#?###"###""""## ##??????????????????????????? | | ??????? ####???????????????????????? | | ??????? ????????????????????????? | | ??????? ?????????????????????????? | | ???????# ## ## #??????????????????????????? | | ???????# ## ## ###????????????????????????? | | ???????" #????????????????????????? | | ???????" #????????????????????????? | | ???????" " #????????????????????????? | | ???????" "%" [ ?????????????????????????? | | ???????# ## ## #???###????????????????????? | | ######## ## ## #####T######???????????????? | | #???????????????? | | % #???????????????? | | =%= #???????????????? | | # #######[### ########;#### #???????????????? | | ????????# #?# #??????# #??# #???????????????? | | ????????#=#?######??????# #??# #???????????????? | | ????????# ###%#?????????#@#??#^ ^#???????????????? | | ????????#%[! #???????? ?# #??###??????????? | | ??#######%#####???????# ## ##? #??????????? | | ??# ![#???????# ## % # # ##### #??? | | ??####### #???????# g %= ?? | | ????????# #???????# ! ^ ?? | | ????????# #???????#### ## ##########????? | | ????????# #??????????## ??## #?????????????? | | ????????# #???????????###???? ###?????????????? | | ????????# #??????????????????# #???????????????? | | ????????# #??????????????????# #???????????????? | | ????????# #??????????????????# #???????????????? | | ????????# #??????????????????# #???????????????? | | ????????# #??????????????????# #???????????????? | | ????????# #??????????????????# #???????????????? | | ??####### #??????????????????# #???????????????? | | ###!! ## #??????????????????# #???????????????? | | #??????????????????# #???????????????? | | [ #??????????????????# #???????????????? | | ### [[## #??????????????????# #???????????????? | | ??####### #??????????????????# #???????????????? | | ????????# #??????????????????# #???????????????? | | ????????# #??????????????????# #???????????????? | | ????????# #??????????????????# #???????????????? | | ????????# #??????????????????# #???????????????? | +----------------------------------------------------+ Best States ------------- Heat Dissipation 60 Energy Generation 25 Energy Capacity 1580 Matter Stores 700 Matter Capacity 700 Sight Range 21 Terrain Scan Density 10 Armor Coverage 450 Core Shielding 20 Phase Shifting 5 Evasion (%) 50 Recoil Reduction 4 Authchip Count 1 Item Schematics ----------------- Huge Storage Unit | -9/Materials | Hacked Robot Schematics ------------------ None Fabricated ------------ Nothing Repaired ---------- Lgt. Treads | 10% | -10/Materials Lgt. Treads | 22% | -10/Materials Lgt. Treads | 56% | -9/Materials Studied --------- Lgt. Treads | -9/Materials | Hacked Alien Tech Used ----------------- None Achievements -------------- None Challenges ------------ None Game ------ Seed DynamicScrapTurbovents Manual? 0 Play Time 01:02:40 Cumulative 453.7 hours Start 2026.06.27 @ 12:48:03 End 2026.06.27 @ 13:50:43 Sessions 1 Manual Loads 0 Difficulty Rogue Special Mode None Game No. 287 Rogue 287 Adventurer 0 Explorer 0 Win Type - Total 32 Types 16/1/7/2/1/1/1/1/0/2 Lore% 95 Gallery% 89 Achievement% 80 Wizard Run 0 Options --------- Layout 1 ASCII 0 Keyboard 0 Movement Numpad Keybinds 0 Fullscreen 1 Font 24/Proggy Map View 50x35 Zoom Use 0% Tactical HUD 0 Map Filters NONE Filters NONE Steam 1 RUN: 9e20868b-fa27-40da-bff1-13e11449acde